[Event "Western Asian Juniors Chess-ch 2023"]
[Site "Colombo"]
[Date "2023.12.03"]
[Round "7.3"]
[White "Ankit Ray"]
[Black "Hommadov, Amanmuhammet"]
[Result "1/2-1/2"]
[ECO "A49"]
[WhiteElo "1902"]
[BlackElo "2055"]
[Annotator "NA"]
[PlyCount "71"]
[EventDate "2023.11.30"]
[EventCountry "SRI"]
[SourceTitle "playchess.com"]
[Source "ChessBase"]
[SourceQuality "1"]
[TimeControl "5400+30"]

1. Nf3 {[%emt 0:00:03]} Nf6 {[%emt 0:01:57]} 2. g3 {[%emt 0:00:43]} g6 {[%emt 0:00:03]} 3. b3 {[%emt 0:00:17]} Bg7 {[%emt 0:00:07]} 4. Bb2 {[%emt 0:00:05]} O-O {[%emt 0:00:03]} 5. Bg2 {[%emt 0:00:19]} d6 {[%emt 0:00:03]} 6. d4 {[%emt 0:00:15]} e5 {[%emt 0:00:06]} 7. dxe5 {[%emt 0:00:10]} Ng4 {[%emt 0:00:01]} 8. O-O {[%emt 0:01:06]} Nxe5 {[%emt 0:00:07]} 9. Qc1 {[%emt 0:00:33]} Nbc6 {[%emt 0:00:34]} 10. c4 {[%emt 0:00:24]} Nxf3+ {[%emt 0:00:16]} 11. Bxf3 {[%emt 0:00:02]} Nd4 {[%emt 0:01:33]} 12. Bxd4 {[%emt 0:02:23]} Bxd4 {[%emt 0:00:08]} 13. Nc3 {[%emt 0:00:06]} c6 {[%emt 0:06:03]} 14. Qd2 {[%emt 0:01:03]} Be5 {[%emt 0:04:03]} 15. Rad1 {[%emt 0:02:06]} Qe7 {[%emt 0:00:13]} 16. Ne4 {[%emt 0:01:46]} Rd8 {[%emt 0:00:56]} 17. Bg2 {[%emt 0:01:48]} Be6 {[%emt 0:00:41]} 18. Qe3 {[%emt 0:07:34]} Bf5 {[%emt 0:10:34]} 19. Ng5 {[%emt 0:02:59]} Bf6 {[%emt 0:00:37]} 20. Qxe7 {[%emt 0:01:52]} Bxe7 {[%emt 0:00:24]} 21. Ne4 {[%emt 0:02:02]} a5 {[%emt 0:00:59]} 22. Nc3 {[%emt 0:02:48]} Kf8 {[%emt 0:01:43]} 23. Rd2 {[%emt 0:03:23]} Ke8 {[%emt 0:08:36]} 24. Rfd1 {[%emt 0:00:23]} Kd7 {[%emt 0:00:11]} 25. e4 {[%emt 0:02:05]} Bg4 {[%emt 0:00:34]} 26. f3 {[%emt 0:00:12]} Be6 {[%emt 0:00:03]} 27. Nd5 {[%emt 0:00:14]} cxd5 {[%emt 0:27:19]} 28. cxd5 {[%emt 0:00:06]} Bg4 {[%emt 0:00:26]} 29. fxg4 {[%emt 0:01:12]} Bg5 {[%emt 0:00:09]} 30. Re2 {[%emt 0:01:03]} f6 {[%emt 0:00:46]} 31. Rf1 {[%emt 0:01:10]} Ke7 {[%emt 0:00:06]} 32. h4 {[%emt 0:00:50]} Bh6 {[%emt 0:37:09]} 33. g5 {[%emt 0:33:00]} Bg7 {[%emt 0:00:00]} 34. Bh3 {[%emt 0:04:41]} fxg5 {[%emt 0:00:00]} 35. hxg5 {[%emt 0:00:01]} Rf8 {[%emt 0:00:00]} 36. Rxf8 {[%emt 0:02:36]} 1/2-1/2

[Event "Western Asian Juniors Chess-ch 2023"]
[Site "Colombo"]
[Date "2023.12.03"]
[Round "7.4"]
[White "Orozbaev, Eldiar"]
[Black "Raahul V S"]
[Result "0-1"]
[ECO "C15"]
[WhiteElo "2278"]
[BlackElo "2350"]
[Annotator "ChessBase"]
[PlyCount "102"]
[EventDate "2023.11.30"]
[EventCountry "SRI"]
[SourceTitle "playchess.com"]
[Source "ChessBase"]
[SourceQuality "1"]
[TimeControl "5400+30"]

1. e4 {[%emt 0:02:56]} e6 {[%emt 0:01:16]} 2. d4 {[%emt 0:00:04]} d5 {[%emt 0:00:03]} 3. Nc3 {[%emt 0:00:03]} Bb4 {[%emt 0:00:05]} 4. Nge2 {[%emt 0:01:28]} dxe4 {[%emt 0:00:26]} 5. a3 {[%emt 0:00:03]} Bxc3+ {[%emt 0:00:05]} 6. Nxc3 {[%emt 0:00:03]} Nc6 {[%emt 0:00:06]} 7. d5 {[%emt 0:00:03]} exd5 {[%emt 0:00:04]} 8. Qxd5 {[%emt 0:00:02]} Be6 {[%emt 0:00:07]} 9. Qxe4 {[%emt 0:00:16]} Nf6 {[%emt 0:00:34]} 10. Qh4 {[%emt 0:00:05]} Qd4 {[%emt 0:02:55]} 11. Qxd4 {[%emt 0:00:07]} Nxd4 {[%emt 0:00:05]} 12. Bd3 {[%emt 0:00:03]} O-O-O {[%emt 0:09:14]} 13. Bg5 {[%emt 0:00:49]} Nb3 {[%emt 1:22:00]} 14. Rd1 {[%emt 0:00:49]} Nc5 {[%emt 0:00:00]} 15. Bxf6 {[%emt 0:00:53]} Nxd3+ {[%emt 0:00:00]} 16. Rxd3 {[%emt 0:00:16]} gxf6 {[%emt 0:00:00]} 17. Kd2 {[%emt 0:03:38]} Rxd3+ {[%emt 0:00:00]} 18. cxd3 {[%emt 0:01:56]} Rd8 {[%emt 0:00:00]} 19. Re1 {[%emt 0:00:07]} c5 {[%emt 0:00:00]} 20. Re3 {[%emt 0:01:07]} c4 {[%emt 0:00:00]} 21. Ne2 {[%emt 0:00:24]} Bf5 {[%emt 0:00:00]} 22. d4 {[%emt 0:00:07]} Rd6 {[%emt 0:00:00]} 23. Rc3 {[%emt 0:03:09]} Be6 {[%emt 0:00:00]} 24. Ke3 {[%emt 0:01:38]} Kd7 {[%emt 0:00:00]} 25. Nf4 {[%emt 0:05:24]} Kc6 {[%emt 0:00:00]} 26. Ke4 {[%emt 0:03:58]} b5 {[%emt 0:06:30]} 27. Rg3 {[%emt 0:01:44]} Bd5+ {[%emt 0:00:00]} 28. Nxd5 {[%emt 0:00:20]} Re6+ {[%emt 0:00:00]} 29. Kf3 {[%emt 0:00:20]} Kxd5 {[%emt 0:00:00]} 30. Rh3 {[%emt 0:05:14]} Kxd4 {[%emt 0:00:00]} 31. Rxh7 {[%emt 0:00:04]} Kd3 {[%emt 0:00:00]} 32. Rxf7 {[%emt 0:00:05]} Kc2 {[%emt 0:00:00]} 33. Rxa7 {[%emt 0:02:12]} Kxb2 {[%emt 0:00:00]} 34. Rb7 {[%emt 0:00:06]} Re5 {[%emt 0:00:00]} 35. a4 {[%emt 0:00:02]} c3 {[%emt 0:00:00]} 36. axb5 {[%emt 0:00:04]} Rf5+ {[%emt 0:00:00]} 37. Ke3 {[%emt 0:03:35]} Re5+ {[%emt 0:00:00]} 38. Kd3 {[%emt 0:03:47]} Rc5 {[%emt 0:00:00]} 39. Re7 {[%emt 0:00:05]} Rd5+ {[%emt 0:00:00]} 40. Kc4 {[%emt 0:02:41]} Re5 {[%emt 0:00:00]} 41. Rc7 {[%emt 0:00:43]} c2 {[%emt 0:00:00]} 42. Kb4 {[%emt 0:00:02]} c1=Q {[%emt 0:00:00]} 43. Rxc1 {[%emt 0:00:03]} Kxc1 {[%emt 0:00:00]} 44. b6 {[%emt 0:00:06]} Kd2 {[%emt 0:00:00]} 45. b7 {[%emt 0:05:04]} Re8 {[%emt 0:00:00]} 46. Kc5 {[%emt 0:00:04]} Ke2 {[%emt 0:00:00]} 47. Kc6 {[%emt 0:00:25]} Kxf2 {[%emt 0:00:00]} 48. Kd7 {[%emt 0:08:52]} Rh8 {[%emt 0:00:00]} 49. h4 {[%emt 0:02:57]} Kxg2 {[%emt 0:00:00]} 50. h5 {[%emt 0:00:04]} Kg3 {[%emt 0:00:00]} 51. Ke6 {[%emt 0:00:48]} Kg4 {[%emt 0:00:00]} 0-1

[Event "Western Asian Juniors Chess-ch 2023"]
[Site "Colombo"]
[Date "2023.12.03"]
[Round "7.5"]
[White "Thilakarathne, G M H"]
[Black "Manon, Reja Neer"]
[Result "1-0"]
[ECO "C90"]
[WhiteElo "2389"]
[BlackElo "2207"]
[Annotator "ChessBase"]
[PlyCount "150"]
[EventDate "2023.11.30"]
[EventCountry "SRI"]
[SourceTitle "playchess.com"]
[Source "ChessBase"]
[SourceQuality "1"]
[TimeControl "5400+30"]

1. e4 {[%emt 0:00:29]} e5 {[%emt 0:00:10]} 2. Nf3 {[%emt 0:00:06]} Nc6 {[%emt 0:00:05]} 3. Bc4 {[%emt 0:00:06]} Nf6 {[%emt 0:01:00]} 4. d3 {[%emt 0:01:23]} Be7 {[%emt 0:01:03]} 5. O-O {[%emt 0:02:08]} O-O {[%emt 0:00:06]} 6. Re1 {[%emt 0:01:21]} d6 {[%emt 0:00:21]} 7. c3 {[%emt 0:01:33]} Na5 {[%emt 0:02:28]} 8. Bb5 {[%emt 0:00:11]} a6 {[%emt 0:00:26]} 9. Ba4 {[%emt 0:00:02]} b5 {[%emt 0:00:12]} 10. Bc2 {[%emt 0:00:07]} c5 {[%emt 0:00:07]} 11. d4 {[%emt 0:01:55]} Qc7 {[%emt 0:02:42]} 12. Nbd2 {[%emt 0:00:39]} cxd4 {[%emt 0:11:55]} 13. cxd4 {[%emt 0:00:14]} Bg4 {[%emt 0:00:08]} 14. d5 {[%emt 0:07:18]} Rac8 {[%emt 0:03:18]} 15. Bd3 {[%emt 0:01:44]} Nb7 {[%emt 0:02:05]} 16. h3 {[%emt 0:21:23]} Nc5 {[%emt 0:00:16]} 17. Bb1 {[%emt 0:00:45]} Bd7 {[%emt 0:06:46]} 18. Nf1 {[%emt 0:16:52]} a5 {[%emt 0:08:20]} 19. Ng3 {[%emt 0:10:03]} Na4 {[%emt 0:03:17]} 20. Bd3 {[%emt 0:03:00]} Bd8 {[%emt 0:10:03]} 21. Qe2 {[%emt 0:08:11]} Qb8 {[%emt 0:04:06]} 22. Nh2 {[%emt 0:08:43]} Nc5 {[%emt 0:03:43]} 23. Bb1 {[%emt 0:00:29]} b4 {[%emt 0:10:23]} 24. b3 {[%emt 0:05:25]} Qb5 {[%emt 0:05:17]} 25. Qd1 {[%emt 0:00:55]} Be7 {[%emt 0:01:58]} 26. f4 {[%emt 0:01:51]} Ne8 {[%emt 0:04:38]} 27. Bc2 {[%emt 0:03:06]} Qb6 {[%emt 0:04:57]} 28. Kh1 {[%emt 0:00:22]} Bh4 {[%emt 0:01:43]} 29. Nhf1 {[%emt 0:00:18]} Bb5 {[%emt 0:02:07]} 30. Qg4 {[%emt 0:00:38]} Bxg3 {[%emt 0:00:07]} 31. Nxg3 {[%emt 0:00:20]} Nf6 {[%emt 0:00:05]} 32. Qd1 {[%emt 0:04:53]} Ncd7 {[%emt 0:00:44]} 33. Nf5 {[%emt 0:00:00]} Rfe8 {[%emt 0:00:59]} 34. Be3 {[%emt 0:00:00]} Qa6 {[%emt 0:00:01]} 35. fxe5 {[%emt 0:00:00]} Nxe5 {[%emt 0:00:24]} 36. Bg5 {[%emt 0:00:00]} Nfd7 {[%emt 0:01:06]} 37. Re3 {[%emt 0:01:24]} Qb6 {[%emt 0:01:47]} 38. Rg3 {[%emt 0:00:38]} Ng6 {[%emt 0:03:31]} 39. Rc1 {[%emt 0:00:46]} Nc5 {[%emt 0:01:19]} 40. h4 {[%emt 0:00:31]} h5 {[%emt 0:01:20]} 41. Be3 {[%emt 0:00:20]} Qd8 {[%emt 0:00:27]} 42. Qxh5 {[%emt 0:00:28]} Nxe4 {[%emt 0:00:43]} 43. Bxe4 {[%emt 0:00:08]} Rxc1+ {[%emt 0:00:26]} 44. Bxc1 {[%emt 0:00:01]} Rxe4 {[%emt 0:00:03]} 45. Bb2 {[%emt 0:00:21]} Be2 {[%emt 0:02:03]} 46. Qg5 {[%emt 0:01:25]} Qxg5 {[%emt 0:01:37]} 47. Rxg5 {[%emt 0:00:02]} Rg4 {[%emt 0:02:05]} 48. Rxg4 {[%emt 0:00:18]} Bxg4 {[%emt 0:00:02]} 49. Nxd6 {[%emt 0:00:10]} Ne7 {[%emt 0:00:42]} 50. Nb7 {[%emt 0:00:19]} Nxd5 {[%emt 0:00:07]} 51. Nxa5 {[%emt 0:00:08]} Nc3 {[%emt 0:02:42]} 52. a4 {[%emt 0:00:11]} Be6 {[%emt 0:00:00]} 53. Kh2 {[%emt 0:01:20]} g6 {[%emt 0:00:00]} 54. Bc1 {[%emt 0:01:00]} Ne4 {[%emt 0:00:57]} 55. Be3 {[%emt 0:00:20]} Kf8 {[%emt 0:00:26]} 56. Nc6 {[%emt 0:00:41]} Bxb3 {[%emt 0:00:28]} 57. a5 {[%emt 0:00:01]} Bd5 {[%emt 0:00:35]} 58. Nxb4 {[%emt 0:00:04]} Ba8 {[%emt 0:00:10]} 59. Na6 {[%emt 0:00:22]} Ke7 {[%emt 0:00:14]} 60. g4 {[%emt 0:01:29]} Kd7 {[%emt 0:00:29]} 61. Nb4 {[%emt 0:01:01]} Nf6 {[%emt 0:00:24]} 62. Kg3 {[%emt 0:00:13]} Nd5 {[%emt 0:00:20]} 63. Nc2 {[%emt 0:00:25]} Kc7 {[%emt 0:01:16]} 64. Bd4 {[%emt 0:00:21]} Ne7 {[%emt 0:00:37]} 65. Kf4 {[%emt 0:00:10]} Kc6 {[%emt 0:00:26]} 66. Bf6 {[%emt 0:01:33]} Ng8 {[%emt 0:00:21]} 67. Ke5 {[%emt 0:00:12]} Kd7 {[%emt 0:00:45]} 68. g5 {[%emt 0:00:21]} Ke8 {[%emt 0:00:31]} 69. Ne3 {[%emt 0:00:11]} Kd7 {[%emt 0:00:09]} 70. Ng4 {[%emt 0:00:13]} Bf3 {[%emt 0:00:48]} 71. Nh6 {[%emt 0:00:02]} Ne7 {[%emt 0:00:13]} 72. Bxe7 {[%emt 0:00:22]} Kxe7 {[%emt 0:00:09]} 73. a6 {[%emt 0:00:21]} Be2 {[%emt 0:00:53]} 74. a7 {[%emt 0:00:02]} Bf3 {[%emt 0:00:01]} 75. Ng8+ {[%emt 0:00:14]} Kd7 {[%emt 0:01:48]} 1-0

[Event "Western Asian Juniors Chess-ch 2023"]
[Site "Colombo"]
[Date "2023.12.03"]
[Round "7.6"]
[White "Halynyazow, Vepaly"]
[Black "Senevirathne, S D B K"]
[Result "1/2-1/2"]
[ECO "C44"]
[WhiteElo "2020"]
[BlackElo "1802"]
[Annotator "NA"]
[PlyCount "78"]
[EventDate "2023.11.30"]
[EventCountry "SRI"]
[SourceTitle "playchess.com"]
[Source "ChessBase"]
[SourceQuality "1"]
[TimeControl "5400+30"]

1. e4 {[%emt 0:03:38]} e5 {[%emt 0:00:35]} 2. Nf3 {[%emt 0:00:10]} Nc6 {[%emt 0:00:09]} 3. d4 {[%emt 0:02:30]} exd4 {[%emt 0:00:16]} 4. c3 {[%emt 0:00:05]} d5 {[%emt 0:03:43]} 5. Bb5 {[%emt 0:03:50]} dxe4 {[%emt 0:05:40]} 6. Nxd4 {[%emt 0:00:10]} Bd7 {[%emt 0:03:18]} 7. Nxc6 {[%emt 0:01:15]} Bxc6 {[%emt 0:00:44]} 8. Bxc6+ {[%emt 0:00:13]} bxc6 {[%emt 0:00:07]} 9. Qa4 {[%emt 0:00:29]} Qd5 {[%emt 1:20:28]} 10. O-O {[%emt 0:01:20]} f5 {[%emt 0:00:30]} 11. Bf4 {[%emt 0:02:08]} Nf6 {[%emt 0:00:00]} 12. Na3 {[%emt 0:04:03]} Be7 {[%emt 0:00:00]} 13. Rad1 {[%emt 0:00:09]} Qe6 {[%emt 0:00:00]} 14. Nc2 {[%emt 0:00:32]} Bc5 {[%emt 0:02:00]} 15. Be3 Bxe3 {[%emt 0:00:00]} 16. fxe3 {[%emt 0:04:15]} O-O {[%emt 0:00:00]} 17. Nd4 {[%emt 0:00:07]} Qe8 {[%emt 0:00:00]} 18. Rxf5 {[%emt 0:08:19]} Ng4 {[%emt 0:00:00]} 19. Qc4+ {[%emt 0:04:28]} Kh8 {[%emt 0:00:00]} 20. Qxc6 {[%emt 0:08:59]} Qxc6 {[%emt 0:00:00]} 21. Rxf8+ {[%emt 0:00:10]} Rxf8 {[%emt 0:00:00]} 22. Nxc6 {[%emt 0:00:10]} Nxe3 {[%emt 0:00:00]} 23. Re1 {[%emt 0:00:15]} Nc4 {[%emt 0:00:00]} 24. Rxe4 {[%emt 0:00:29]} Nxb2 {[%emt 0:00:00]} 25. Nxa7 {[%emt 0:00:41]} Nd1 {[%emt 0:00:00]} 26. c4 {[%emt 0:01:35]} h6 {[%emt 0:06:00]} 27. Nb5 c6 28. Na7 c5 29. Nb5 Ra8 30. a3 Ra4 31. h4 Nb2 32. Nd6 Rxa3 33. h5 Ra7 {[%emt 0:00:00]} 34. Nc8 {[%emt 0:14:12]} Ra4 {[%emt 0:04:00]} 35. Nd6 {[%emt 0:12:34]} Ra7 {[%emt 0:00:00]} 36. Nf5 {[%emt 0:02:17]} Kg8 {[%emt 0:00:00]} 37. Kf2 {[%emt 0:03:58]} Kf7 {[%emt 0:00:00]} 38. Kf3 {[%emt 0:01:40]} Kf6 {[%emt 0:00:00]} 39. Ke3 {[%emt 0:01:04]} Ra4 {[%emt 0:00:00]} 1/2-1/2

[Event "Western Asian Juniors Chess-ch 2023"]
[Site "Colombo"]
[Date "2023.12.03"]
[Round "7.7"]
[White "Dissanayake, R K T"]
[Black "Sathsindu, W M Minura"]
[Result "1-0"]
[ECO "B77"]
[WhiteElo "1865"]
[BlackElo "1542"]
[Annotator "NA"]
[PlyCount "119"]
[EventDate "2023.11.30"]
[EventCountry "SRI"]
[SourceTitle "playchess.com"]
[Source "ChessBase"]
[SourceQuality "1"]
[TimeControl "5400+30"]

1. e4 {[%emt 0:00:03]} c5 {[%emt 0:00:14]} 2. Nf3 {[%emt 0:00:05]} d6 {[%emt 0:00:08]} 3. d4 {[%emt 0:00:04]} cxd4 {[%emt 0:00:08]} 4. Nxd4 {[%emt 0:00:05]} Nf6 {[%emt 0:00:14]} 5. Nc3 {[%emt 0:00:04]} g6 {[%emt 0:00:09]} 6. Be3 {[%emt 0:00:27]} Bg7 {[%emt 0:00:26]} 7. f3 {[%emt 0:00:08]} Nc6 {[%emt 0:00:33]} 8. Qd2 {[%emt 0:00:07]} O-O {[%emt 0:00:57]} 9. Bc4 {[%emt 0:00:05]} Nxd4 {[%emt 0:10:21]} 10. Bxd4 {[%emt 0:00:10]} Be6 {[%emt 0:00:36]} 11. Bb3 {[%emt 0:04:43]} a6 {[%emt 0:02:57]} 12. O-O-O {[%emt 0:03:37]} b5 {[%emt 0:02:42]} 13. h4 {[%emt 0:02:04]} Rc8 {[%emt 0:16:06]} 14. h5 {[%emt 0:02:01]} Bc4 {[%emt 0:07:38]} 15. g4 {[%emt 0:08:32]} Qa5 {[%emt 0:18:50]} 16. Kb1 {[%emt 0:04:13]} Rfd8 {[%emt 0:09:35]} 17. hxg6 {[%emt 0:06:31]} hxg6 {[%emt 0:06:53]} 18. Qh2 {[%emt 0:13:04]} Kf8 {[%emt 0:15:05]} 19. Nd5 {[%emt 0:22:31]} Bxd5 {[%emt 0:00:39]} 20. Bxd5 {[%emt 0:00:47]} e5 {[%emt 0:01:53]} 21. Be3 {[%emt 0:00:11]} Ke7 {[%emt 0:02:05]} 22. Qf2 {[%emt 0:06:06]} Nxd5 {[%emt 0:01:57]} 23. Rxd5 {[%emt 0:00:12]} Rh8 {[%emt 0:00:28]} 24. Rhd1 {[%emt 0:00:12]} Rc6 {[%emt 0:00:16]} 25. c3 {[%emt 0:09:37]} Qc7 {[%emt 0:00:28]} 26. f4 {[%emt 0:01:23]} exf4 {[%emt 0:01:23]} 27. Bxf4 {[%emt 0:00:04]} Be5 {[%emt 0:00:28]} 28. Bxe5 {[%emt 0:00:10]} dxe5 {[%emt 0:00:02]} 29. Rd7+ {[%emt 0:01:12]} Qxd7 {[%emt 0:00:02]} 30. Rxd7+ {[%emt 0:00:08]} Kxd7 {[%emt 0:00:03]} 31. Qxf7+ {[%emt 0:00:07]} Kc8 {[%emt 0:00:59]} 32. Qg7 {[%emt 0:00:58]} Re8 {[%emt 0:00:19]} 33. Kc2 {[%emt 0:00:43]} Ree6 {[%emt 0:00:30]} 34. Kb3 {[%emt 0:01:07]} Rc7 {[%emt 0:00:32]} 35. Qg8+ {[%emt 0:00:26]} Kd7 {[%emt 0:00:01]} 36. Qf7+ {[%emt 0:00:41]} Kd6 {[%emt 0:00:11]} 37. Qf8+ {[%emt 0:00:13]} Kd7 {[%emt 0:00:14]} 38. g5 {[%emt 0:02:39]} Rc4 {[%emt 0:00:31]} 39. Qf7+ {[%emt 0:00:27]} Kd6 {[%emt 0:00:07]} 40. Qb7 {[%emt 0:00:25]} Rc6 {[%emt 0:00:18]} 41. a4 {[%emt 0:02:26]} bxa4+ {[%emt 0:01:33]} 42. Kxa4 {[%emt 0:00:09]} Re7 {[%emt 0:00:58]} 43. Qb8+ {[%emt 0:00:14]} Kd7 {[%emt 0:00:40]} 44. Kb3 {[%emt 0:01:59]} Rc7 {[%emt 0:00:59]} 45. Qg8 {[%emt 0:00:46]} Re6 {[%emt 0:00:09]} 46. Kc2 {[%emt 0:00:46]} Rcc6 {[%emt 0:00:30]} 47. Qf7+ {[%emt 0:00:34]} Kd6 {[%emt 0:00:12]} 48. b4 {[%emt 0:00:13]} Rc7 {[%emt 0:00:23]} 49. Qf8+ {[%emt 0:00:12]} Kd7 {[%emt 0:00:14]} 50. Kb3 {[%emt 0:00:50]} Rcc6 {[%emt 0:01:09]} 51. Qf7+ {[%emt 0:00:23]} Re7 {[%emt 0:00:14]} 52. Qg8 {[%emt 0:01:15]} Ree6 {[%emt 0:00:35]} 53. c4 {[%emt 0:00:56]} Kc7 {[%emt 0:00:38]} 54. Qf7+ {[%emt 0:00:20]} Kb8 {[%emt 0:00:13]} 55. c5 {[%emt 0:00:21]} Kc8 {[%emt 0:01:56]} 56. Kc4 {[%emt 0:00:07]} Kd8 {[%emt 0:00:37]} 57. Kd5 {[%emt 0:00:12]} Re7 {[%emt 0:00:12]} 58. Qxe7+ {[%emt 0:00:07]} Kc8 {[%emt 0:01:20]} 59. Kc4 {[%emt 0:11:48]} Rd6 {[%emt 0:00:30]} 60. cxd6 {[%emt 0:00:30]} 1-0

[Event "Western Asian Juniors Chess-ch 2023"]
[Site "Colombo"]
[Date "2023.12.03"]
[Round "7.8"]
[White "Induwara, T H D Thisarindu"]
[Black "Mujahid Bin Yazeed"]
[Result "0-1"]
[ECO "C54"]
[WhiteElo "1494"]
[BlackElo "1832"]
[Annotator "NA"]
[PlyCount "98"]
[EventDate "2023.11.30"]
[EventCountry "SRI"]
[SourceTitle "playchess.com"]
[Source "ChessBase"]
[SourceQuality "1"]
[TimeControl "5400+30"]

1. e4 {[%emt 0:00:05]} e5 {[%emt 0:00:56]} 2. Nf3 {[%emt 0:00:05]} Nc6 {[%emt 0:00:06]} 3. Bc4 {[%emt 0:00:04]} Bc5 {[%emt 0:00:22]} 4. c3 {[%emt 0:00:09]} Nf6 {[%emt 0:00:07]} 5. d3 {[%emt 0:00:07]} a5 {[%emt 0:02:00]} 6. O-O {[%emt 0:00:51]} d6 {[%emt 0:00:31]} 7. h3 {[%emt 0:00:56]} Qe7 {[%emt 0:01:01]} 8. d4 {[%emt 0:03:16]} Bb6 {[%emt 0:01:45]} 9. Re1 {[%emt 0:01:48]} h6 {[%emt 0:03:08]} 10. Na3 {[%emt 0:04:17]} g5 {[%emt 0:02:03]} 11. g4 {[%emt 0:09:53]} Nd7 {[%emt 0:08:52]} 12. Nc2 {[%emt 0:09:11]} f6 {[%emt 0:01:57]} 13. Ne3 {[%emt 0:02:54]} h5 {[%emt 0:01:09]} 14. Nh2 {[%emt 0:47:41]} hxg4 {[%emt 0:05:03]} 15. Nhxg4 {[%emt 0:00:13]} Qh7 {[%emt 0:21:27]} 16. Qf3 {[%emt 0:07:10]} exd4 {[%emt 0:06:09]} 17. Nd5 {[%emt 0:08:39]} Nce5 {[%emt 0:03:27]} 18. Ngxf6+ {[%emt 0:01:27]} Nxf6 {[%emt 0:00:47]} 19. Qxf6 {[%emt 0:00:21]} Rf8 {[%emt 0:01:13]} 20. Bxg5 {[%emt 0:00:16]} Nf3+ {[%emt 0:02:12]} 21. Kf1 {[%emt 0:00:47]} Qxh3+ {[%emt 0:00:03]} 22. Ke2 {[%emt 0:00:01]} Rxf6 {[%emt 0:00:21]} 23. Nxf6+ {[%emt 0:00:01]} Kf8 {[%emt 0:05:48]} 24. Rh1 {[%emt 0:00:09]} Nh2 {[%emt 0:00:07]} 25. Rag1 {[%emt 0:00:57]} Qf3+ {[%emt 0:18:29]} 26. Ke1 {[%emt 0:00:05]} d3 {[%emt 0:05:10]} 27. Bh6+ {[%emt 0:01:53]} Ke7 {[%emt 0:00:06]} 28. Nd5+ {[%emt 0:00:31]} Kd7 {[%emt 0:03:22]} 29. Bb5+ {[%emt 0:00:28]} Ke6 {[%emt 0:00:17]} 30. Nf4+ {[%emt 0:00:22]} Ke5 {[%emt 0:01:48]} 31. Rg5+ {[%emt 0:00:25]} Kxf4 {[%emt 0:01:10]} 32. Rg3+ {[%emt 0:00:50]} Kxe4 {[%emt 0:00:15]} 33. Bxd3+ {[%emt 0:00:11]} Qxd3 {[%emt 0:00:18]} 34. Rxd3 {[%emt 0:00:04]} Kxd3 {[%emt 0:00:06]} 35. Rxh2 {[%emt 0:00:01]} Bg4 {[%emt 0:00:22]} 36. f4 {[%emt 0:00:07]} Re8+ {[%emt 0:00:19]} 37. Kf1 {[%emt 0:00:01]} Be2+ {[%emt 0:00:46]} 38. Kg2 {[%emt 0:00:02]} Rg8+ {[%emt 0:00:48]} 39. Bg5 {[%emt 0:00:10]} c6 {[%emt 0:00:51]} 40. Rh7 {[%emt 0:00:04]} Bd8 {[%emt 0:00:19]} 41. Rxb7 {[%emt 0:00:07]} Bxg5 {[%emt 0:00:10]} 42. fxg5 {[%emt 0:00:02]} Rxg5+ {[%emt 0:00:08]} 43. Kf2 {[%emt 0:00:02]} Rf5+ {[%emt 0:00:46]} 44. Kg3 {[%emt 0:00:03]} Rb5 {[%emt 0:00:07]} 45. Rd7 {[%emt 0:00:02]} d5 {[%emt 0:00:26]} 46. Ra7 {[%emt 0:00:06]} Rxb2 {[%emt 0:00:45]} 47. Rxa5 {[%emt 0:00:02]} Kxc3 {[%emt 0:00:22]} 48. Rc5+ {[%emt 0:00:04]} Bc4 {[%emt 0:00:07]} 49. a4 {[%emt 0:00:05]} Rb6 {[%emt 0:00:27]} 0-1

[Event "Western Asian Juniors Chess-ch 2023"]
[Site "Colombo"]
[Date "2023.12.03"]
[Round "7.9"]
[White "Liyanage, Pesandu Rashmitha"]
[Black "Kulathilake, S M M P"]
[Result "1/2-1/2"]
[ECO "D11"]
[WhiteElo "1766"]
[BlackElo "1583"]
[Annotator "NA"]
[PlyCount "88"]
[EventDate "2023.11.30"]
[EventCountry "SRI"]
[SourceTitle "playchess.com"]
[Source "ChessBase"]
[SourceQuality "1"]
[TimeControl "5400+30"]

1. d4 {[%emt 0:00:02]} d5 {[%emt 0:00:17]} 2. Nf3 {[%emt 0:00:06]} Nf6 {[%emt 0:00:07]} 3. e3 {[%emt 0:00:07]} c6 {[%emt 0:00:26]} 4. Bd3 {[%emt 0:00:20]} Bg4 {[%emt 1:31:40]} 5. O-O {[%emt 0:00:55]} e6 {[%emt 0:00:00]} 6. Nbd2 {[%emt 0:00:32]} Bd6 {[%emt 0:00:00]} 7. b3 {[%emt 0:01:18]} Nbd7 {[%emt 0:00:00]} 8. Bb2 {[%emt 0:00:36]} O-O {[%emt 0:02:00]} 9. c4 {[%emt 0:00:51]} e5 {[%emt 0:00:00]} 10. cxd5 {[%emt 0:02:40]} cxd5 {[%emt 0:00:00]} 11. dxe5 {[%emt 0:01:10]} Bxe5 {[%emt 0:00:00]} 12. Bxe5 {[%emt 0:01:01]} Nxe5 {[%emt 0:00:00]} 13. Be2 {[%emt 0:00:03]} Nxf3+ {[%emt 0:00:00]} 14. Nxf3 {[%emt 0:02:52]} Bxf3 {[%emt 0:00:00]} 15. Bxf3 {[%emt 0:00:15]} Qb6 {[%emt 0:00:00]} 16. Qd3 {[%emt 1:25:42]} Rad8 {[%emt 0:00:00]} 17. Rfd1 {[%emt 0:00:00]} Rd7 {[%emt 0:00:00]} 18. Rd2 {[%emt 0:00:00]} Rfd8 {[%emt 0:00:00]} 19. Rad1 {[%emt 0:00:00]} Qe6 {[%emt 0:00:00]} 20. Qd4 {[%emt 0:00:00]} a6 {[%emt 0:00:00]} 21. Qf4 {[%emt 0:00:00]} h6 {[%emt 0:00:00]} 22. h4 {[%emt 0:00:00]} h5 {[%emt 0:00:00]} 23. Rd4 {[%emt 0:00:00]} g6 {[%emt 0:00:00]} 24. Rc1 {[%emt 0:00:00]} Qd6 {[%emt 0:00:00]} 25. Qh6 {[%emt 0:00:00]} Qe6 {[%emt 0:00:00]} 26. Kh1 {[%emt 0:00:00]} Ne4 {[%emt 0:00:00]} 27. Kg1 {[%emt 0:00:00]} Nf6 {[%emt 0:00:00]} 28. a4 {[%emt 0:00:00]} Rd6 {[%emt 0:00:00]} 29. Qf4 {[%emt 0:00:00]} R6d7 {[%emt 0:00:00]} 30. b4 {[%emt 0:00:00]} Qd6 {[%emt 0:00:00]} 31. Qg5 {[%emt 0:00:00]} Kg7 {[%emt 0:00:00]} 32. Rcd1 {[%emt 0:00:00]} Qe6 {[%emt 0:00:00]} 33. a5 {[%emt 0:00:00]} Kh7 {[%emt 0:00:00]} 34. g3 {[%emt 0:00:00]} Kg7 {[%emt 0:00:00]} 35. Kg2 {[%emt 0:00:00]} Nh7 {[%emt 0:00:00]} 36. Qf4 {[%emt 0:00:00]} Nf6 {[%emt 0:00:00]} 37. R4d2 {[%emt 0:01:39]} Qc6 {[%emt 0:00:22]} 38. Qe5 {[%emt 0:01:30]} Qe6 {[%emt 0:02:09]} 39. Qb2 {[%emt 0:00:53]} Kh7 {[%emt 0:01:54]} 40. Rc2 {[%emt 0:00:49]} Ne4 {[%emt 0:01:31]} 41. Qd4 {[%emt 0:00:36]} Qf5 {[%emt 0:01:59]} 42. Rdc1 {[%emt 0:01:06]} Rd6 {[%emt 0:01:43]} 43. Rc7 {[%emt 0:06:57]} g5 {[%emt 0:07:52]} 44. Rd1 Rf6 {[%emt 0:00:30]} 1/2-1/2